bitfinex-derivatives/quotes_SOLF0:USTF0_20260210
["timestamp","ask_amount","ask_price","bid_price","bid_amount"]
[1770747448450,10.6679,84.412,84.372,10.6729]
[1770747449355,10.6685,84.407,84.368,3.90661265]
[1770747450744,3.99486271,84.411,84.369,10.6732]
[1770747451949,10.6666,84.422,84.375,3.90661265]
[1770747453751,10.6666,84.422,84.385,10.6712]
[1770747454353,10.6666,84.422,84.378,10.672]
[1770747454552,3.99486271,84.419,84.378,10.672]
[1770747454855,3.99486271,84.419,84.35,9.62939165]
[1770747454856,3.99486271,84.419,84.361,3.90661265]
[1770747455961,10.6679,84.412,84.371,10.6729]
[1770747457360,14.66276271,84.412,84.371,10.6729]
[1770747458959,3.99486271,84.411,84.371,10.6729]
[1770747460456,10.6669,84.42,84.377,3.90661265]
[1770747461256,10.6655,84.431,84.392,10.6703]
[1770747461559,3.99486271,84.442,84.392,3.90661265]
[1770747462062,10.6647,84.437,84.392,3.90661265]
[1770747462358,3.99486271,84.442,84.392,3.90661265]
[1770747462958,10.6654,84.431,84.392,3.90661265]
[1770747463159,3.99486271,84.43,84.378,3.90661265]
[1770747464768,10.6668,84.421,84.379,10.672]
[1770747465465,10.667,84.419,84.379,10.672]
[1770747466065,14.66186271,84.419,84.379,10.672]
[1770747468063,3.99486271,84.418,84.379,10.672]
[1770747469468,10.6662,84.426,84.386,10.671]
[1770747470067,4.11631514,84.429,84.381,11.00027707]
[1770747470275,4.11631514,84.429,84.38,4.06383062]
[1770747470873,10.6674,84.416,84.381,10.6717]
[1770747471073,10.6674,84.416,84.38,4.06383062]
[1770747471977,10.6674,84.416,84.38,14.73573062]
[1770747477177,10.6674,84.416,84.381,4.06383062]
[1770747477976,4.11631514,84.409,84.372,10.6728]
[1770747478683,10.6686,84.406,84.372,10.6728]
[1770747479680,4.11631514,84.409,84.377,10.6721]
[1770747479882,4.11631514,84.429,84.386,4.06383062]
[1770747480777,4.11631514,84.443,84.394,4.06383062]
[1770747480981,3.59470089,84.44,84.394,4.06383062]
[1770747481774,4.11631514,84.439,84.394,4.06383062]
[1770747481980,3.59470089,84.43,84.394,4.06383062]
[1770747482176,4.11631514,84.439,84.394,4.06383062]
[1770747482683,3.59470089,84.46,84.411,4.06383062]
[1770747482880,4.11631514,84.465,84.414,4.06383062]
[1770747483086,4.11631514,84.459,84.406,11.00027707]
[1770747483284,4.11631514,84.459,84.404,15.06410769]
[1770747483484,4.11631514,84.459,84.405,4.06383062]
[1770747483687,4.11631514,84.459,84.406,4.06383062]
[1770747484285,4.11631514,84.448,84.403,11.00027707]
[1770747484489,7.71101603,84.42,84.378,4.06383062]
[1770747484685,94.56,84.48,84.38,3.59470089]
[1770747484686,3.59470089,84.43,84.38,3.59470089]
[1770747484886,10.6656,84.43,84.387,4.06383062]
[1770747485686,14.25939544,84.43,84.388,10.6707]
[1770747487788,4.11631514,84.429,84.388,10.6707]
[1770747488788,10.92458683,84.462,84.396,4.06383062]
[1770747488789,10.6647,84.438,84.396,4.06383062]
[1770747489589,10.6653,84.432,84.396,4.06383062]
[1770747490592,10.6653,84.432,84.368,22.10398287]
[1770747490593,4.11631514,84.469,84.411,4.06383062]
[1770747490890,4.11631514,84.486,84.441,4.06383062]
[1770747491192,14.77481514,84.486,84.441,4.06383062]
[1770747491390,4.11631514,84.485,84.441,4.06383062]
[1770747492191,4.11631514,84.483,84.441,4.06383062]
[1770747493392,3.59379544,84.48,84.441,4.06383062]
[1770747493689,7.71011058,84.48,84.432,4.06383062]
[1770747493893,4.11631514,84.48,84.432,4.06383062]
[1770747494791,4.11631514,84.48,84.434,10.665]
[1770747495892,4.11631514,84.48,84.435,4.06383062]
[1770747496091,4.11631514,84.48,84.436,14.72853062]
[1770747496288,4.11631514,84.48,84.44,3.59379544]
[1770747496694,4.11631514,84.48,84.436,14.72853062]
[1770747497193,4.11631514,84.48,84.437,4.06383062]
[1770747498589,4.11631514,84.48,84.438,10.6645]
[1770747498792,4.11631514,84.48,84.437,4.06383062]
[1770747498793,10.6579,84.491,84.45,3.59379544]
[1770747498997,4.11631514,84.489,84.441,4.06383062]
[1770747499198,4.11631514,84.479,84.433,10.6651]
[1770747499694,14.77571514,84.479,84.434,4.06383062]
[1770747500692,14.77571514,84.479,84.436,10.6647]
[1770747501401,14.77571514,84.479,84.436,14.66523803]
[1770747503101,4.11631514,84.479,84.436,4.00053803]
[1770747503495,3.8758365,84.469,84.423,10.6663]
[1770747503700,3.8758365,84.469,84.424,4.07297741]
[1770747504301,10.662,84.459,84.424,4.07297741]
[1770747504498,3.8758365,84.449,84.41,4.07297741]
[1770747504704,3.8758365,84.464,84.421,4.07297741]
[1770747505902,10.6618,84.46,84.421,4.07297741]
[1770747506201,21.3134,84.501,84.388,14.7117544]
[1770747506202,3.8758365,84.477,84.431,4.07297741]
[1770747506401,10.6594,84.479,84.441,4.07297741]
[1770747506795,10.6594,84.479,84.45,3.59379544]
[1770747506995,3.8758365,84.504,84.46,3.59379544]
[1770747508010,3.8758365,84.537,84.48,3.59379544]
[1770747508211,3.8758365,84.537,84.491,4.07297741]
[1770747508506,3.8758365,84.537,84.5,3.59379544]
[1770747508807,10.6525,84.534,84.5,3.59379544]
[1770747509010,3.8758365,84.537,84.491,4.07297741]
[1770747509907,3.8758365,84.518,84.461,4.07297741]
[1770747510804,10.6566,84.501,84.461,4.07297741]
[1770747511104,14.5324365,84.501,84.461,4.07297741]
[1770747511809,3.59379544,84.49,84.447,4.07297741]
[1770747512109,3.8758365,84.491,84.447,4.07297741]
[1770747512306,3.59379544,84.49,84.441,10.6641]
[1770747512607,3.59379544,84.49,84.442,4.07297741]
[1770747512798,10.6582,84.489,84.442,4.07297741]
[1770747513811,10.6582,84.489,84.441,10.6641]
[1770747513812,3.8758365,84.523,84.452,4.07297741]
[1770747514305,3.8758365,84.523,84.44,9.61333213]
[1770747514306,3.8758365,84.523,84.46,4.07297741]
[1770747515713,10.655,84.514,84.461,10.6616]
[1770747515914,94.48,84.537,84.46,4.07297741]
[1770747515915,3.8758365,84.513,84.46,4.07297741]
[1770747516815,10.6569,84.499,84.46,4.07297741]
[1770747519414,10.6559,84.507,84.46,4.07297741]
[1770747520704,10.6559,84.507,84.461,10.6616]
[1770747521305,10.6559,84.507,84.462,4.07297741]
[1770747523111,10.6559,84.507,84.463,10.6613]
[1770747523614,10.6559,84.507,84.464,4.07297741]
[1770747523915,10.6559,84.507,84.466,4.07297741]
[1770747524610,3.8758365,84.513,84.467,10.6608]
[1770747524819,3.8758365,84.528,84.468,4.07297741]
[1770747525315,3.8758365,84.542,84.468,4.07297741]
[1770747525916,10.6528,84.531,84.487,4.07297741]
[1770747526911,3.8758365,84.559,84.487,4.07297741]
[1770747527113,3.8758365,84.559,84.489,4.07297741]
[1770747528816,10.651,84.545,84.501,4.07297741]
[1770747529518,10.651,84.545,84.502,14.72937741]
[1770747529720,10.65,84.553,84.503,4.07297741]
[1770747530421,10.6506,84.549,84.503,4.07297741]
[1770747530610,3.888901,84.548,84.503,4.07297741]
[1770747531921,3.888901,84.546,84.489,4.11390216]
[1770747532419,3.888901,84.532,84.476,4.11390216]
[1770747533012,10.6518,84.54,84.487,4.11390216]
[1770747533214,3.888901,84.539,84.487,4.11390216]
[1770747533712,10.6524,84.535,84.49,4.11390216]
[1770747533918,3.888901,84.559,84.49,4.11390216]
[1770747534926,10.6512,84.544,84.494,4.11390216]
[1770747535924,10.6512,84.544,84.496,4.11390216]
[1770747536915,10.6512,84.544,84.501,10.6565]
[1770747537112,10.6512,84.544,84.502,4.11390216]
[1770747537423,3.888901,84.536,84.492,10.6576]
[1770747538319,94.44,84.565,84.485,4.11390216]
[1770747538320,3.888901,84.529,84.485,4.11390216]
[1770747539822,10.6532,84.528,84.485,4.11390216]
[1770747540322,10.6539,84.523,84.485,4.11390216]
[1770747540627,3.58458853,84.52,84.473,4.11390216]
[1770747541420,3.888901,84.519,84.473,4.11390216]
[1770747541626,3.888901,84.499,84.446,4.11390216]
[1770747542224,3.888901,84.499,84.45,3.58458853]
[1770747542822,3.888901,84.498,84.452,10.6627]
[1770747543814,3.888901,84.498,84.456,10.6622]
[1770747544424,3.888901,84.498,84.427,94.44]
[1770747544425,3.888901,84.513,84.471,4.11390216]
[1770747544620,3.888901,84.513,84.432,22.10398287]
[1770747544621,3.58458853,84.54,84.491,4.11390216]
[1770747545032,3.888901,84.543,84.491,4.11390216]
[1770747545428,10.6517,84.54,84.492,4.11390216]
[1770747545724,3.888901,84.539,84.475,4.11390216]
[1770747546523,3.888901,84.52,84.472,10.6601]
[1770747547029,3.888901,84.52,84.464,94.44]
[1770747547030,10.6545,84.518,84.476,10.6597]
[1770747547625,10.6548,84.516,84.473,4.11390216]
[1770747548924,3.888901,84.515,84.468,10.6607]
[1770747549931,10.6555,84.51,84.459,4.11390216]
[1770747550126,3.888901,84.509,84.459,4.11390216]
[1770747550334,3.888901,84.509,84.453,11.01125936]
[1770747550335,10.6568,84.5,84.453,10.6626]
[1770747550634,94.44,84.539,84.444,4.11390216]
[1770747550635,3.888901,84.538,84.456,4.11390216]
[1770747550928,3.888901,84.538,84.466,4.11390216]
[1770747551233,3.888901,84.538,84.477,4.11390216]
[1770747551926,3.888901,84.537,84.486,10.6584]
[1770747552122,3.888901,84.537,84.487,4.11390216]
[1770747553433,3.888901,84.537,84.489,4.11390216]
[1770747553641,10.6513,84.544,84.489,4.11390216]
[1770747554543,3.888901,84.552,84.497,4.11390216]
[1770747555734,10.6504,84.551,84.506,10.6559]
[1770747556139,10.6504,84.551,84.506,14.76980216]
[1770747556343,3.888901,84.569,84.515,4.11390216]
[1770747557732,3.888901,84.569,84.527,10.6532]
[1770747558641,3.888901,84.569,84.527,14.76710216]
[1770747558836,3.888901,84.588,84.53,4.11390216]
[1770747559642,14.535601,84.58,84.532,10.6526]
[1770747559941,3.888901,84.58,84.53,4.11390216]
[1770747560747,3.888901,84.58,84.539,10.6517]
[1770747561540,3.888901,84.58,84.513,11.02714021]
[1770747561844,4.04204647,84.579,84.502,3.9923115]
[1770747562145,4.04204647,84.579,84.511,3.82074916]
[1770747562642,4.04204647,84.579,84.527,3.82074916]
[1770747562643,10.6472,84.576,84.527,3.82074916]
[1770747563945,10.648,84.57,84.527,3.82074916]
[1770747564145,4.08470581,84.569,84.512,3.82074916]
[1770747565037,4.08470581,84.569,84.517,10.6545]
[1770747566751,4.08470581,84.566,84.517,10.6545]
[1770747566947,4.08470581,84.566,84.52,3.58245663]
[1770747567349,4.08470581,84.555,84.512,3.82074916]
[1770747567658,4.08470581,84.539,84.49,3.58245663]
[1770747567859,4.08470581,84.539,84.484,3.82074916]
[1770747568360,4.08470581,84.539,84.48,3.58245663]
[1770747568361,4.08470581,84.509,84.46,11.02714021]
[1770747568564,3.58245663,84.49,84.438,3.82074916]
[1770747568755,4.08470581,84.499,84.451,3.82074916]
[1770747569658,3.58245663,84.51,84.461,3.82074916]
[1770747570859,7.66716244,84.51,84.463,10.6613]
[1770747572754,4.08470581,84.509,84.45,3.58245663]
[1770747573064,3.58245663,84.49,84.446,3.82074916]
[1770747573565,4.08470581,84.525,84.446,3.82074916]
[1770747573766,3.58245663,84.5,84.451,3.82074916]
[1770747574157,3.58245663,84.5,84.456,10.6623]
[1770747574862,4.08470581,84.489,84.444,10.6637]
[1770747575362,10.6571,84.497,84.45,7.40320579]
[1770747575566,10.6571,84.497,84.45,3.82074916]
[1770747575763,3.58245663,84.49,84.45,3.82074916]
[1770747577063,4.08470581,84.505,84.451,3.82074916]
[1770747578173,4.08470581,84.505,84.461,14.48234916]
[1770747579663,14.23795663,84.51,84.464,3.82074916]
[1770747579970,3.58245663,84.52,84.464,3.82074916]
[1770747580168,3.58245663,84.52,84.434,14.7117544]
[1770747580169,3.58245663,84.53,84.491,3.82074916]
[1770747581269,3.58245663,84.52,84.485,10.6586]
[1770747581475,3.58245663,84.52,84.472,3.82074916]
[1770747581665,4.08470581,84.529,84.472,3.82074916]
[1770747582164,10.6519,84.539,84.487,3.82074916]
[1770747582567,3.58245663,84.53,84.487,3.82074916]
[1770747582970,4.08470581,84.538,84.487,3.82074916]
[1770747583564,4.08470581,84.538,84.467,3.82074916]
[1770747583768,4.08470581,84.536,84.481,10.659]
[1770747584377,4.08470581,84.524,84.458,3.82074916]
[1770747584875,4.08470581,84.508,84.458,14.48274916]
[1770747585672,10.6559,84.507,84.458,14.48274916]
[1770747587881,4.08470581,84.539,84.482,3.82074916]
[1770747588179,4.08470581,84.539,84.468,3.82074916]
[1770747588975,10.6551,84.514,84.47,10.6605]
[1770747589475,10.6551,84.514,84.471,3.82074916]
[1770747589676,4.08470581,84.533,84.477,3.82074916]
[1770747590277,4.08470581,84.533,84.49,14.49008857]
[1770747592579,10.6529,84.531,84.49,14.49008857]
[1770747593482,10.6529,84.531,84.49,3.83218857]
[1770747596086,10.6539,84.523,84.474,3.83218857]
[1770747597378,4.08470581,84.533,84.469,94.44]
[1770747597379,10.6529,84.531,84.482,14.49108857]
[1770747597580,10.6529,84.531,84.483,3.83218857]
[1770747600283,10.6529,84.531,84.485,3.83218857]
[1770747600985,10.6536,84.525,84.485,3.83218857]
[1770747601384,3.87256971,84.531,84.487,3.83218857]
[1770747601575,10.653,84.53,84.487,3.83218857]
[1770747602488,3.87256971,84.531,84.487,3.83218857]
[1770747603791,10.6536,84.525,84.487,3.83218857]
[1770747604876,3.87256971,84.531,84.487,3.83218857]
[1770747605277,3.87256971,84.531,84.469,94.44]
[1770747605278,3.58521063,84.54,84.491,3.83218857]
[1770747605487,3.87256971,84.545,84.51,3.58521063]
[1770747605782,3.87256971,84.545,84.501,3.83218857]
[1770747606185,3.87256971,84.545,84.49,3.58521063]
[1770747606388,3.87256971,84.545,84.49,7.4173992]
[1770747606587,3.87256971,84.539,84.49,7.4173992]
[1770747606893,3.87256971,84.525,84.475,3.83218857]
[1770747607390,3.87256971,84.522,84.463,11.02714021]
[1770747607589,3.87256971,84.522,84.461,3.83218857]
[1770747608288,3.87256971,84.51,84.462,10.6614]
[1770747608486,3.87256971,84.529,84.463,3.83218857]
[1770747608792,3.87256971,84.529,84.453,3.83218857]
[1770747608992,3.87256971,84.529,84.461,3.83218857]
[1770747609193,3.87256971,84.529,84.462,3.83218857]
[1770747609394,3.87256971,84.529,84.463,3.83218857]
[1770747609592,3.87256971,84.543,84.476,3.83218857]
[1770747609989,10.6534,84.527,84.479,3.83218857]
[1770747610803,3.87256971,84.543,84.481,3.83218857]
[1770747610804,10.6524,84.535,84.481,3.83218857]
[1770747611507,3.87256971,84.558,84.495,3.83218857]
[1770747611801,3.87256971,84.572,84.501,3.83218857]
[1770747612096,3.87256971,84.572,84.521,3.83218857]
[1770747613698,3.87256971,84.572,84.523,3.83218857]
[1770747614696,10.648,84.57,84.523,3.83218857]
[1770747616312,3.87256971,84.565,84.512,3.83218857]
[1770747616513,3.87256971,84.579,84.521,3.83218857]
[1770747617604,10.6483,84.567,84.521,3.83218857]
[1770747618714,3.87256971,84.579,84.522,3.83218857]
[1770747618715,10.6472,84.576,84.522,3.83218857]
[1770747619701,10.6481,84.569,84.525,3.83218857]
[1770747620512,10.6485,84.566,84.525,3.83218857]
[1770747620710,4.07235289,84.58,84.525,3.83218857]
[1770747621811,10.6474,84.574,84.525,3.83218857]
[1770747622216,10.648,84.569,84.525,3.83218857]
[1770747625004,3.79655265,84.562,84.512,10.6551]
[1770747626207,3.79655265,84.55,84.502,3.80175814]
[1770747627109,14.44735265,84.548,84.502,3.80175814]
[1770747627510,3.79655265,84.548,84.504,3.80175814]
[1770747627907,310.41504025,84.598,84.504,3.80175814]
[1770747627908,3.79655265,84.577,84.504,3.80175814]
[1770747628109,3.79655265,84.597,84.533,3.80175814]
[1770747628313,3.79655265,84.597,84.512,3.80175814]
[1770747628515,3.79655265,84.575,84.525,3.80175814]
[1770747629718,3.79655265,84.572,84.527,10.6532]
[1770747630112,3.79655265,84.572,84.525,3.80175814]
[1770747630515,3.79655265,84.557,84.511,3.80175814]
[1770747631216,3.79655265,84.545,84.5,10.6567]
[1770747631414,3.79655265,84.545,84.498,3.80175814]
[1770747632719,10.6523,84.536,84.498,3.80175814]
[1770747633717,10.6526,84.533,84.49,10.6579]
[1770747633913,3.79655265,84.535,84.483,3.80175814]
[1770747634812,10.6534,84.527,84.483,3.80175814]
[1770747636216,3.79655265,84.524,84.483,3.80175814]
[1770747637820,3.79655265,84.549,84.485,3.80175814]
[1770747638623,10.6531,84.529,84.485,3.80175814]
[1770747641325,3.79655265,84.535,84.485,3.80175814]
[1770747642830,10.6541,84.521,84.485,3.80175814]
[1770747643021,3.79655265,84.52,84.472,3.80175814]
[1770747643418,3.79655265,84.515,84.456,3.80175814]
[1770747643621,9.59971858,84.51,84.444,11.02714021]
[1770747643927,3.79655265,84.509,84.441,3.80175814]
[1770747644227,3.79655265,84.486,84.441,3.80175814]
[1770747644528,3.79655265,84.486,84.427,3.80175814]
[1770747644733,3.79655265,84.464,84.418,3.80175814]
[1770747645033,3.79655265,84.464,84.389,14.82889835]
[1770747645219,3.79655265,84.464,84.389,3.80175814]
[1770747645619,10.6628,84.453,84.393,3.80175814]
[1770747645820,3.79655265,84.464,84.394,3.80175814]
[1770747646034,3.79655265,84.464,84.397,3.80175814]
[1770747646332,3.79655265,84.464,84.398,3.80175814]
[1770747646732,3.79655265,84.461,84.399,3.80175814]
[1770747647327,10.662,84.458,84.401,3.80175814]
[1770747647533,3.79655265,84.457,84.389,94.42]
[1770747648327,3.79655265,84.457,84.389,3.80175814]
[1770747648534,10.6659,84.427,84.371,3.80175814]
[1770747648931,3.79655265,84.449,84.371,3.80175814]
[1770747649528,10.6656,84.43,84.371,3.80175814]
[1770747649731,3.79655265,84.429,84.371,3.80175814]
[1770747650131,3.96890822,84.404,84.337,3.71273213]
[1770747650835,3.96890822,84.404,84.323,3.71273213]
[1770747651129,3.96890822,84.389,84.323,3.71273213]
[1770747651531,3.96890822,84.389,84.276,730.69139204]
[1770747651532,3.96890822,84.369,84.284,3.71273213]
[1770747651929,3.96890822,84.369,84.267,94.46]
[1770747651930,3.96890822,84.347,84.268,3.71273213]
[1770747652132,3.96890822,84.347,84.271,3.71273213]
[1770747652332,3.96890822,84.347,84.273,3.71273213]
[1770747652636,3.96890822,84.363,84.291,3.71273213]
[1770747653327,9.59971858,84.38,84.291,3.71273213]
[1770747653328,13.5686268,84.38,84.291,3.71273213]
[1770747653536,3.96890822,84.379,84.293,3.71273213]
[1770747654136,3.96890822,84.379,84.294,3.71273213]
[1770747654832,3.96890822,84.379,84.301,3.71273213]
[1770747655036,3.96890822,84.395,84.311,3.71273213]
[1770747655230,3.96890822,84.395,84.312,3.71273213]
[1770747655425,3.96890822,84.395,84.314,3.71273213]
[1770747655626,10.6707,84.39,84.314,3.71273213]
[1770747655829,3.96890822,84.415,84.331,3.71273213]
[1770747656732,3.96890822,84.39,84.331,3.71273213]
[1770747658340,10.6693,84.401,84.331,3.71273213]
[1770747658531,14.63820822,84.401,84.331,3.71273213]
[1770747658736,3.96890822,84.4,84.331,3.71273213]
[1770747659840,3.96890822,84.396,84.331,3.71273213]
[1770747660450,3.96890822,84.393,84.331,3.71273213]
[1770747660636,3.96890822,84.389,84.315,3.71273213]
[1770747661340,3.96890822,84.373,84.315,3.71273213]
[1770747661539,3.96890822,84.369,84.299,3.71273213]
[1770747661942,9.59971858,84.41,84.274,94.56]
[1770747661943,3.96890822,84.349,84.274,94.56]
[1770747662135,3.96890822,84.349,84.266,3.71273213]
[1770747662337,9.59971858,84.35,84.262,2.06409367]
[1770747662338,3.96890822,84.315,84.262,2.06409367]
[1770747662644,3.96890822,84.315,84.248,3.71273213]
[1770747662842,3.96890822,84.315,84.24,9.59971858]
[1770747662843,3.96890822,84.31,84.184,3.71273213]
[1770747663039,3.96890822,84.31,84.149,14.7117544]
[1770747663040,2.94030562,84.269,84.133,11.02714021]
[1770747663238,2.94030562,84.229,84.141,3.71273213]
[1770747663439,2.94030562,84.229,84.144,3.71273213]
[1770747663644,2.94030562,84.229,84.14,9.59971858]
[1770747663645,2.94030562,84.247,84.16,9.59971858]
[1770747663846,3.96890822,84.269,84.17,9.59971858]
[1770747664046,3.96890822,84.269,84.171,94.56]
[1770747664248,3.96890822,84.269,84.19,9.59971858]
[1770747664445,94.56,84.287,84.19,9.59971858]
[1770747664750,3.96890822,84.286,84.21,9.59971858]
[1770747665050,3.96890822,84.279,84.19,9.59971858]
[1770747665237,3.96890822,84.259,84.17,9.59971858]
[1770747665438,3.96890822,84.259,84.19,9.59971858]
[1770747665848,3.96890822,84.259,84.19,13.31245071]
[1770747666238,3.81785251,84.258,84.19,3.71273213]
[1770747666448,3.81785251,84.258,84.191,3.71273213]
[1770747667044,3.81785251,84.249,84.171,3.71273213]
[1770747667749,3.81785251,84.24,84.151,3.71273213]
[1770747667954,3.58168999,84.229,84.151,3.71273213]
[1770747668151,3.58168999,84.225,84.151,3.71273213]
[1770747668450,9.66832809,84.23,84.132,3.71273213]
[1770747668451,3.58168999,84.209,84.132,3.71273213]
[1770747668841,3.58168999,84.199,84.115,3.71273213]
[1770747669044,3.58168999,84.199,84.121,3.71273213]
[1770747669546,94.64,84.233,84.121,3.71273213]
[1770747669547,9.66832809,84.19,84.121,3.71273213]
[1770747669753,3.60133523,84.189,84.121,3.71273213]
[1770747670249,3.60133523,84.209,84.121,3.71273213]
[1770747670451,3.60133523,84.209,84.131,3.71273213]
[1770747671349,13.26966332,84.18,84.091,3.71273213]
[1770747671546,3.60133523,84.179,84.102,3.71273213]
[1770747671845,14.22365024,84.175,84.102,3.71273213]
[1770747672050,3.52575024,84.174,84.089,3.71273213]
[1770747672450,3.52575024,84.174,84.101,3.71273213]
[1770747672758,3.52575024,84.199,84.121,3.71273213]
[1770747674956,10.6965,84.186,84.121,3.71273213]
[1770747675758,3.52575024,84.199,84.121,3.71273213]
[1770747677052,3.63714368,84.197,84.121,3.71273213]
[1770747677252,3.63714368,84.219,84.121,3.71273213]
[1770747677452,3.63714368,84.217,84.121,3.71273213]
[1770747677755,3.63714368,84.217,84.136,3.71273213]
[1770747678558,3.63714368,84.217,84.141,3.71273213]
[1770747679353,3.63714368,84.217,84.14,20.38565706]
[1770747679354,3.63714368,84.217,84.143,3.71273213]
[1770747679550,3.63488053,84.235,84.143,3.71273213]
[1770747679848,3.63488053,84.235,84.144,3.71273213]
[1770747680755,9.68345706,84.24,84.144,3.71273213]
[1770747680756,3.62396412,84.219,84.144,3.71273213]
[1770747681555,3.62396412,84.216,84.146,4.00007412]
[1770747681961,3.63609628,84.239,84.146,4.00007412]
[1770747682160,3.63609628,84.239,84.162,14.52542393]
[1770747682865,104.44345706,84.24,84.14,9.68345706]
[1770747682866,3.63608777,84.236,84.166,10.699]
[1770747683561,3.63608777,84.236,84.174,10.6979]
[1770747683868,3.63608777,84.236,84.167,3.82592393]
[1770747684068,9.68345706,84.24,84.14,9.68345706]
[1770747684069,3.63378623,84.232,84.159,10.6998]
[1770747684270,3.63378623,84.219,84.141,3.82592393]
[1770747684662,3.63378623,84.206,84.141,3.82592393]
[1770747685263,3.63378623,84.223,84.168,10.6986]
[1770747686484,3.6094816,84.203,84.148,10.7012]
[1770747686765,3.6094816,84.203,84.132,3.82592393]
[1770747687368,3.6094816,84.203,84.146,10.7015]
[1770747688166,3.6094816,84.203,84.147,3.82592393]
[1770747688365,3.6094816,84.203,84.149,3.82592393]
[1770747688571,3.6094816,84.203,84.131,3.82592393]
[1770747689273,3.54946139,84.193,84.134,10.703]
[1770747690066,10.6961,84.189,84.134,10.703]
[1770747690472,14.30973021,84.177,84.122,10.7046]
[1770747690772,3.61203021,84.177,84.123,3.82592393]
[1770747691172,10.6965,84.186,84.133,10.7032]
[1770747691469,3.61203021,84.186,84.11,94.78]
[1770747691673,3.61203021,84.186,84.105,3.82592393]
[1770747691674,10.6999,84.16,84.108,14.53232393]
[1770747692175,14.30562396,84.16,84.108,14.53232393]
[1770747692477,3.60572396,84.15,84.088,3.82592393]
[1770747692675,3.60572396,84.169,84.088,3.82592393]
[1770747692866,10.6993,84.164,84.109,3.82592393]
[1770747693472,10.6982,84.173,84.111,3.82592393]
[1770747693867,3.60572396,84.187,84.111,3.82592393]
[1770747694366,3.64301901,84.182,84.117,3.82592393]
[1770747695073,3.64301901,84.173,84.117,3.82592393]
[1770747695277,3.64301901,84.19,84.117,3.82592393]
[1770747695769,9.68345706,84.2,84.095,3.82592393]
[1770747695770,3.64301901,84.188,84.095,3.82592393]
[1770747695972,3.6243734,84.179,84.095,3.82592393]
[1770747696475,3.6243734,84.17,84.105,3.82592393]
[1770747696870,3.6243734,84.17,84.111,10.7059]
[1770747697466,3.6243734,84.169,84.105,3.82592393]
[1770747697869,3.6243734,84.169,84.102,10.7071]
[1770747698065,3.41267311,84.151,84.081,2.06839984]
[1770747698268,9.68345706,84.18,84.053,3.82592393]
[1770747698269,3.41267311,84.139,84.053,3.82592393]
[1770747698473,3.41267311,84.119,84.053,3.82592393]
[1770747699376,3.41267311,84.119,84.021,3.82592393]
[1770747699675,3.41267311,84.119,84.023,3.82592393]
[1770747699874,3.41267311,84.119,84.053,10.7133]
[1770747700172,3.57789224,84.109,84.035,3.82592393]
[1770747701469,3.57789224,84.127,84.055,3.82592393]
[1770747701768,3.64711799,84.139,84.057,3.82592393]
[1770747701967,3.64711799,84.139,84.059,3.82592393]
[1770747702172,3.64711799,84.136,84.061,3.82592393]
[1770747702773,10.705,84.119,84.062,10.7121]
[1770747702978,3.64711799,84.118,84.062,10.7121]
[1770747703371,3.64711799,84.114,84.061,3.82592393]
[1770747703875,3.64711799,84.114,84.039,3.82592393]
[1770747704070,3.64711799,84.114,84.041,3.82592393]
[1770747704378,3.64711799,84.114,84.043,3.82592393]
[1770747704573,3.64711799,84.114,84.045,3.82592393]
[1770747704771,3.64711799,84.114,84.071,10.711]
[1770747705476,9.68345706,84.13,84.08,10.7099]
[1770747705875,3.50778977,84.134,84.063,3.82592393]
[1770747706078,9.68345706,84.15,84.099,10.7074]
[1770747706274,13.19110999,84.15,84.1,10.15824784]
[1770747706578,13.19110999,84.15,84.101,10.15824784]
[1770747706777,3.50765293,84.15,84.109,10.7061]
[1770747707075,3.50765293,84.149,84.084,3.82592393]
[1770747707281,3.50765293,84.149,84.085,10.20584572]
[1770747707578,3.50765293,84.149,84.086,10.20584572]
[1770747707780,3.50765293,84.149,84.087,10.20584572]
[1770747707981,3.50765293,84.149,84.088,10.20584572]
[1770747708182,3.50765293,84.149,84.089,10.20584572]
[1770747708387,3.50765293,84.149,84.09,10.20584572]
[1770747708573,3.50765293,84.149,84.091,10.20584572]
[1770747708884,3.45400692,84.139,84.066,3.82592393]
[1770747709078,3.45400692,84.139,84.067,10.08225248]
[1770747709273,3.45400692,84.139,84.068,10.08225248]
[1770747709583,3.44940145,84.12,84.069,20.79355248]
[1770747709783,3.44940145,84.119,84.07,10.08225248]
[1770747710176,3.45758965,84.117,84.07,10.08225248]
[1770747710470,3.45758965,84.117,84.071,10.04787134]
[1770747710671,3.45758965,84.117,84.072,10.04787134]
[1770747710875,3.45758965,84.117,84.047,3.82592393]
[1770747710876,3.45758965,84.117,84.073,10.04787134]
[1770747711076,3.45506277,84.115,84.049,4.00058132]
[1770747711277,3.45506277,84.115,84.051,4.00058132]